bitfinex-derivatives/quotes_SOLF0:USTF0_20241217
["timestamp","ask_amount","ask_price","bid_price","bid_amount"]
[1734438084341,16.14067109,222.87,222.77,3.0565]
[1734438084536,2.244,222.84,222.77,3.0565]
[1734438085744,2.244,222.84,222.77,5.3012]
[1734438086838,16.14067109,222.87,222.79,2.2445]
[1734438086839,2.2439,222.86,222.79,2.2445]
[1734438087038,10.64244627,222.84,222.68,1.5666]
[1734438087239,2.2446,222.79,222.71,2.2453]
[1734438087450,10.64244627,222.81,222.72,4.73238272]
[1734438087636,10.64244627,222.81,222.69,5.2241]
[1734438087843,2.2452,222.73,222.69,3.0041]
[1734438088045,2.2452,222.73,222.69,5.2241]
[1734438089445,2.2452,222.73,222.69,3.0041]
[1734438089648,12.86244627,222.78,222.69,3.0041]
[1734438089849,2.2453,222.72,222.69,3.0041]
[1734438090245,2.2452,222.73,222.69,3.0041]
[1734438091451,12.86244627,222.78,222.69,3.0041]
[1734438092152,2.2452,222.73,222.69,3.0041]
[1734438093544,12.86244627,222.78,222.65,2.22]
[1734438093545,2.2453,222.72,222.65,2.22]
[1734438094251,2.2453,222.72,222.65,4.4659]
[1734438094948,12.86244627,222.78,222.65,2.22]
[1734438095157,10.64244627,222.78,222.66,10.64244627]
[1734438095450,2.22,222.79,222.66,10.64244627]
[1734438095649,2.22,222.79,222.65,3.7779]
[1734438095650,10.64244627,222.78,222.65,3.7779]
[1734438096054,10.64244627,222.78,222.67,2.2457]
[1734438096055,2.2452,222.73,222.67,2.2457]
[1734438097253,10.64244627,222.75,222.65,3.8038]
[1734438097653,2.22,222.74,222.65,3.8038]
[1734438097860,2.2454,222.72,222.65,3.8038]
[1734438098047,2.22,222.74,222.65,1.5579]
[1734438098556,2.2456,222.69,222.65,1.5579]
[1734438098758,2.2456,222.69,222.64,5.1928]
[1734438099354,2.22,222.74,222.64,5.1928]
[1734438099355,2.2458,222.68,222.64,5.1928]
[1734438100151,2.2458,222.67,222.64,5.1928]
[1734438100949,10.64244627,222.72,222.6,2.22]
[1734438101154,10.64244627,222.66,222.55,3.0532]
[1734438101355,12.86244627,222.66,222.55,3.0532]
[1734438101553,2.2464,222.62,222.57,2.2467]
[1734438101758,12.86244627,222.66,222.55,3.0532]
[1734438101959,2.2458,222.67,222.63,2.2461]
[1734438102154,12.86244627,222.72,222.6,2.22]
[1734438102663,2.2457,222.68,222.63,2.2461]
[1734438102961,2.2457,222.68,222.6,2.22]
[1734438103353,12.86244627,222.72,222.66,2.2459]
[1734438103354,2.2455,222.7,222.66,2.2459]
[1734438103550,12.86244627,222.72,222.6,12.86244627]
[1734438103956,2.2454,222.71,222.67,2.2457]
[1734438104559,2.2453,222.72,222.67,2.2457]
[1734438104752,2.2453,222.72,222.6,12.86244627]
[1734438104959,12.86244627,222.75,222.69,2.2456]
[1734438105156,10.64244627,222.75,222.69,2.2456]
[1734438105456,12.86244627,222.78,222.71,2.2453]
[1734438106559,2.2449,222.76,222.71,2.2453]
[1734438106957,2.2449,222.76,222.7,2.2454]
[1734438107959,7.52159873,222.76,222.7,2.2454]
[1734438109369,2.245,222.75,222.7,2.2454]
[1734438110461,2.2452,222.73,222.68,2.22]
[1734438110661,10.64244627,222.75,222.68,2.22]
[1734438111171,2.2453,222.73,222.68,2.22]
[1734438111565,5.27669873,222.76,222.68,2.22]
[1734438111771,2.2452,222.74,222.68,4.4656]
[1734438112669,2.2452,222.73,222.68,4.4656]
[1734438113271,2.2452,222.73,222.68,2.22]
[1734438113865,2.2453,222.72,222.68,2.22]
[1734438114974,10.64244627,222.72,222.57,10.64244627]
[1734438115275,10.64244627,222.72,222.58,8.43068408]
[1734438115475,10.64244627,222.72,222.61,2.2464]
[1734438116073,2.2459,222.66,222.61,2.2464]
[1734438116575,10.64244627,222.66,222.58,3.6914]
[1734438116776,10.64244627,222.66,222.58,2.2]
[1734438116980,10.64244627,222.66,222.53,13.69714627]
[1734438117279,10.64244627,222.66,222.54,6.92607843]
[1734438117577,10.64244627,222.66,222.54,2.2]
[1734438117780,2.2462,222.63,222.54,2.2]
[1734438117972,10.64244627,222.66,222.54,2.2]
[1734438118976,10.64244627,222.63,222.53,3.0547]
[1734438119176,2.2,222.62,222.53,3.0547]
[1734438119879,2.2465,222.6,222.53,3.0547]
[1734438120076,2.2,222.62,222.53,3.0547]
[1734438120381,10.64244627,222.6,222.53,3.0547]
[1734438120782,2.2468,222.57,222.53,3.0547]
[1734438121275,10.64244627,222.6,222.47,1.4914]
[1734438121481,10.64244627,222.57,222.48,4.73024552]
[1734438121677,10.64244627,222.54,222.47,1.4914]
[1734438121875,2.2,222.53,222.47,1.4914]
[1734438122180,2.2474,222.51,222.47,1.4914]
[1734438122475,10.64244627,222.57,222.47,1.4914]
[1734438122683,4.4468,222.58,222.51,2.2474]
[1734438122983,2.2,222.58,222.51,2.2474]
[1734438123374,4.4467,222.58,222.51,2.2474]
[1734438123775,5.4122228,222.64,222.52,10.64244627]
[1734438123982,2.2,222.63,222.53,5.2618]
[1734438124174,2.2,222.63,222.56,2.2469]
[1734438124578,2.2,222.63,222.53,5.2618]
[1734438124779,5.4122228,222.64,222.57,2.2468]
[1734438124980,2.2462,222.63,222.53,15.90424627]
[1734438125177,2.2,222.67,222.56,10.64244627]
[1734438125383,12.84244627,222.69,222.57,1.5642]
[1734438125681,2.2,222.69,222.58,6.92268427]
[1734438125983,2.2,222.69,222.58,2.2]
[1734438126180,12.84244627,222.69,222.58,2.2]
[1734438126381,2.2461,222.65,222.59,2.2466]
[1734438127482,2.2461,222.64,222.59,2.2466]
[1734438127783,2.2,222.68,222.58,2.2]
[1734438127979,2.2,222.7,222.58,2.2]
[1734438128680,10.64244627,222.75,222.59,15.36677317]
[1734438128876,2.2,222.74,222.62,10.64244627]
[1734438129082,10.64244627,222.69,222.58,2.2]
[1734438129383,10.64244627,222.69,222.59,4.72562495]
[1734438129578,12.84244627,222.72,222.6,4.72601414]
[1734438129779,10.64244627,222.75,222.59,10.64244627]
[1734438130081,2.2,222.73,222.6,4.72598283]
[1734438130281,2.2455,222.7,222.64,2.246]
[1734438130476,2.2455,222.7,222.59,10.64244627]
[1734438130477,2.2455,222.7,222.63,2.2]
[1734438130680,2.2,222.73,222.63,2.2]
[1734438130978,2.2454,222.71,222.66,2.2458]
[1734438131179,10.64244627,222.75,222.63,2.2]
[1734438131374,12.84244627,222.75,222.63,2.2]
[1734438131580,2.2451,222.74,222.68,2.2456]
[1734438131776,10.64244627,222.81,222.65,10.64244627]
[1734438131983,2.2449,222.76,222.66,4.72988919]
[1734438132176,10.64244627,222.78,222.67,1.5644]
[1734438133083,10.64244627,222.75,222.67,1.5644]
[1734438133775,12.84244627,222.75,222.67,1.5644]
[1734438134174,2.2454,222.72,222.67,3.8102]
[1734438134772,12.84244627,222.75,222.69,2.2456]
[1734438134773,2.2451,222.74,222.69,2.2456]
[1734438134978,2.2,222.75,222.69,2.2456]
[1734438135389,10.64244627,222.78,222.72,2.2453]
[1734438135678,7.49126906,222.79,222.72,2.2453]
[1734438136084,10.64244627,222.81,222.68,12.84244627]
[1734438136284,2.2,222.81,222.68,12.84244627]
[1734438136486,2.2446,222.79,222.72,2.2452]
[1734438136679,12.84244627,222.81,222.68,12.84244627]
[1734438137279,2.2448,222.77,222.71,2.2453]
[1734438137882,2.2448,222.77,222.68,12.84244627]
[1734438138079,2.2448,222.77,222.72,2.2452]
[1734438139076,2.2448,222.77,222.68,12.84244627]
[1734438139077,2.2448,222.77,222.73,2.2452]
[1734438141181,2.2448,222.77,222.72,2.2452]
[1734438141379,12.84244627,222.81,222.72,2.2452]
[1734438141380,2.2449,222.76,222.72,2.2452]
[1734438141581,12.84244627,222.81,222.72,2.2452]
[1734438141788,12.84244627,222.81,222.69,5.28659813]
[1734438141989,2.2447,222.78,222.73,2.2451]
[1734438142380,12.84244627,222.81,222.73,2.2451]
[1734438142585,2.2448,222.77,222.73,2.2451]
[1734438142781,12.84244627,222.81,222.69,5.28659813]
[1734438142984,2.2446,222.79,222.75,2.2449]
[1734438143583,2.2,222.81,222.75,2.2449]
[1734438143785,5.38142735,222.83,222.77,2.2447]
[1734438143983,5.38142735,222.83,222.73,2.2]
[1734438144185,2.2443,222.82,222.74,3.0274]
[1734438144688,12.88654627,222.84,222.74,3.0274]
[1734438144888,10.64244627,222.84,222.78,2.2446]
[1734438145583,2.2442,222.83,222.78,2.2446]
[1734438145789,12.84244627,222.87,222.74,13.66984627]
[1734438146085,39.45279904,222.97,222.77,10.64244627]
[1734438146287,10.64244627,223.0,222.86,10.64244627]
[1734438146485,10.64244627,223.0,222.87,2.22]
[1734438146686,10.64244627,223.0,222.87,5.1041]
[1734438146987,2.2429,222.96,222.87,5.1041]
[1734438147185,10.64244627,223.0,222.87,5.1041]
[1734438147384,2.2427,222.98,222.88,1.5866]
[1734438147589,10.64244627,223.0,222.88,1.5866]
[1734438147888,2.2427,222.97,222.92,2.2432]
[1734438148790,2.2427,222.97,222.9,2.2434]
[1734438148984,5.25923638,222.99,222.87,2.8841]
[1734438149193,10.64244627,222.97,222.87,2.8841]
[1734438149389,10.64244627,222.97,222.88,2.22]
[1734438149686,5.25923638,222.99,222.88,2.22]
[1734438150086,5.25923638,222.99,222.88,4.4636]
[1734438150688,2.243,222.95,222.88,4.4636]
[1734438151489,2.2431,222.94,222.88,2.22]
[1734438152088,5.25923638,222.99,222.88,2.22]
[1734438153090,5.25923638,222.99,222.89,10.64244627]
[1734438153394,2.2425,223.0,222.92,2.2432]
[1734438153589,10.64244627,223.03,222.93,2.2]
[1734438154390,10.64244627,223.03,222.87,2.8841]
[1734438154595,10.64244627,222.97,222.87,5.0841]
[1734438154899,2.2429,222.96,222.9,2.2434]
[1734438155194,5.52224616,223.01,222.89,10.64244627]
[1734438155395,2.2427,222.98,222.91,2.2433]
[1734438155586,2.2427,222.98,222.92,2.2]
[1734438155785,5.52224616,223.01,222.92,2.2]
[1734438156089,5.52224616,223.01,222.92,4.4431]
[1734438156090,2.2426,222.99,222.92,4.4431]
[1734438156291,10.64244627,223.03,222.92,2.2]
[1734438156489,2.2,223.06,222.95,2.2429]
[1734438156490,2.2425,223.0,222.95,2.2429]
[1734438157987,2.2425,223.0,222.92,12.84244627]
[1734438157988,10.64244627,223.06,222.96,2.2]
[1734438159095,2.242,223.05,222.98,2.2425]
[1734438159390,2.242,223.05,222.96,2.2]
[1734438159391,10.64244627,223.1,222.96,2.2]
[1734438159589,10.64244627,223.1,222.96,5.2928]
[1734438159992,10.64244627,223.03,222.88,1.5112]
[1734438160295,10.64244627,223.0,222.88,1.5112]
[1734438160802,2.2432,222.93,222.88,1.5112]
[1734438160997,2.2432,222.93,222.88,3.7112]
[1734438161292,10.64244627,223.0,222.88,3.7112]
[1734438161998,2.2433,222.92,222.88,3.7112]
[1734438162396,10.64244627,222.97,222.81,1.5473]
[1734438162693,2.2,222.98,222.82,2.2]
[1734438162694,10.64244627,222.94,222.82,2.2]
[1734438162890,2.2434,222.91,222.82,2.2]
[1734438163095,10.64244627,222.94,222.82,2.2]
[1734438163691,10.64244627,222.94,222.83,2.2]
[1734438164492,2.2437,222.88,222.83,2.2]
[1734438164692,10.64244627,222.94,222.83,2.2]
[1734438165299,2.2437,222.88,222.83,2.2]
[1734438166397,2.2437,222.88,222.82,2.2442]
[1734438166601,2.244,222.85,222.83,2.2]
[1734438169602,10.64244627,222.91,222.81,2.2]
[1734438170200,10.64244627,222.91,222.8,2.2]
[1734438171503,2.2441,222.84,222.8,2.2]
[1734438173003,2.2441,222.84,222.79,2.2]
[1734438174500,2.2442,222.83,222.79,2.2]
[1734438174899,5.29110245,222.89,222.81,2.2443]
[1734438175105,44.61330364,223.43,222.8,10.64244627]
[1734438175106,2.2435,222.9,222.8,10.64244627]
[1734438175305,2.2,222.94,222.83,10.64244627]
[1734438175506,2.2,222.94,222.84,2.2]
[1734438175905,2.2,222.94,222.84,4.444]
[1734438176407,2.2435,222.9,222.84,4.444]
[1734438177213,2.2436,222.89,222.84,4.444]
[1734438177501,10.64244627,222.97,222.84,2.2]
[1734438177708,12.86244627,222.97,222.84,3.7844]
[1734438178406,2.2431,222.94,222.88,2.2436]
[1734438178809,2.2431,222.94,222.89,2.22]
[1734438180211,2.2431,222.94,222.89,4.4635]
[1734438180406,2.2428,222.96,222.89,2.22]
[1734438180807,2.2428,222.96,222.9,2.2434]
[1734438181614,2.2428,222.96,222.91,2.2433]
[1734438181811,2.2432,222.93,222.89,2.22]
[1734438185218,10.64244627,222.97,222.84,1.5844]
[1734438185422,10.64244627,222.94,222.82,2.22]
[1734438185717,2.2434,222.91,222.83,2.22]
[1734438185917,12.86244627,222.94,222.82,2.22]
[1734438186314,2.2437,222.88,222.82,4.4642]
[1734438186820,12.86244627,222.94,222.82,4.4642]
[1734438187125,2.244,222.85,222.82,2.22]
[1734438187725,2.244,222.85,222.79,15.10694627]
[1734438187923,2.2441,222.84,222.79,15.10694627]
[1734438188927,10.64244627,222.88,222.76,15.31884627]
[1734438189129,12.86244627,222.88,222.77,2.22]
[1734438189322,12.86244627,222.88,222.76,3.0908]
[1734438189717,12.86244627,222.88,222.75,2.22]
[1734438190222,10.64244627,222.85,222.72,2.22]
[1734438190725,10.64244627,222.82,222.7,12.86244627]
[1734438190928,2.2449,222.76,222.7,12.86244627]
[1734438191429,2.2449,222.76,222.7,15.10784627]
[1734438191626,2.22,222.81,222.7,12.86244627]
[1734438192232,2.2448,222.77,222.7,15.10784627]
[1734438192426,2.22,222.81,222.7,15.10784627]
[1734438193232,2.2448,222.77,222.7,15.10784627]
[1734438193833,2.2448,222.77,222.71,2.2454]
[1734438194630,2.2446,222.79,222.73,2.2451]
[1734438195032,2.22,222.84,222.73,2.2451]
[1734438197333,2.22,222.84,222.7,12.86244627]
[1734438197540,2.2447,222.78,222.72,2.2453]
[1734438197939,2.2448,222.77,222.71,2.2453]
[1734438198237,2.22,222.84,222.7,12.86244627]
[1734438198736,2.22,222.84,222.72,2.2452]
[1734438200130,2.22,222.84,222.71,2.2453]
[1734438200535,10.64244627,222.81,222.7,2.22]
[1734438201142,10.64244627,222.81,222.69,3.1664]
[1734438201333,10.64244627,222.81,222.69,5.3864]
[1734438202039,6.81680359,222.77,222.7,6.81680359]
[1734438202232,2.2451,222.74,222.7,6.81680359]
[1734438205643,2.2452,222.73,222.69,7.6319]
[1734438205843,6.81680359,222.77,222.7,6.81680359]
[1734438206044,2.22,222.84,222.71,2.2453]
[1734438206241,2.2449,222.76,222.71,2.2453]
[1734438206537,6.81680359,222.79,222.71,2.2453]
[1734438206742,2.2448,222.77,222.71,2.2453]
[1734438206944,6.81680359,222.79,222.71,2.2453]
[1734438207646,2.2449,222.76,222.71,2.2453]
[1734438207846,6.81680359,222.79,222.71,2.2453]
[1734438208543,2.2449,222.76,222.71,2.2453]
[1734438211245,6.81680359,222.79,222.71,2.2453]
[1734438211246,2.245,222.75,222.71,2.2453]
[1734438211449,2.22,222.84,222.72,9.06200359]
[1734438211643,6.81680359,222.79,222.72,9.06200359]
[1734438211843,0.045,222.88,222.74,6.81680359]
[1734438212047,6.81680359,222.85,222.78,9.06140359]
[1734438212249,6.81680359,222.85,222.78,6.81680359]
[1734438212548,2.2442,222.83,222.78,6.81680359]
[1734438212848,9.06080359,222.85,222.8,2.2444]
[1734438213045,6.81680359,222.85,222.76,2.2]
[1734438213250,6.81680359,222.85,222.77,6.81680359]
[1734438213751,2.2443,222.82,222.77,6.81680359]
[1734438214045,2.2443,222.82,222.78,6.81680359]
[1734438214643,2.2443,222.82,222.78,9.06140359]
[1734438215351,6.81680359,222.85,222.78,6.81680359]
[1734438215649,2.2441,222.84,222.8,6.81680359]
[1734438216348,2.2441,222.84,222.8,9.06120359]
[1734438216552,2.2442,222.83,222.8,2.2444]
[1734438217852,6.81680359,222.85,222.78,6.81680359]
[1734438218056,2.2443,222.82,222.78,6.81680359]
[1734438218251,6.81680359,222.85,222.78,6.81680359]
[1734438218948,2.2444,222.81,222.78,6.81680359]
[1734438222355,6.81680359,222.85,222.78,6.81680359]
[1734438222551,2.2445,222.8,222.78,6.81680359]
[1734438224250,2.2445,222.8,222.76,9.01680359]
[1734438225351,6.81680359,222.85,222.76,9.01680359]
[1734438226257,2.2445,222.8,222.76,11.26160359]
[1734438226557,2.2445,222.8,222.78,6.81680359]
[1734438227957,6.81680359,222.85,222.78,6.81680359]
[1734438228155,2.2446,222.79,222.78,6.81680359]
[1734438229051,2.2,222.87,222.78,6.81680359]
[1734438229257,9.01680359,222.87,222.78,6.81680359]
[1734438229660,6.81680359,222.87,222.78,6.81680359]
[1734438229857,6.81680359,222.87,222.76,2.2]
[1734438229858,14.45723975,222.89,222.82,6.81680359]
[1734438230051,14.45723975,222.89,222.8,6.81680359]
[1734438230856,14.45723975,222.89,222.8,9.06130359]
[1734438231051,14.45723975,222.89,222.76,2.2]
[1734438231052,5.44043616,222.89,222.76,2.2]
[1734438231259,6.81680359,222.87,222.79,6.81680359]
[1734438231755,2.2442,222.83,222.79,6.81680359]
[1734438232657,12.25723975,222.89,222.81,6.81680359]
[1734438232862,12.25723975,222.89,222.83,6.81680359]
[1734438233159,5.44043616,222.89,222.83,6.81680359]
[1734438233760,2.2438,222.87,222.83,6.81680359]
[1734438234464,12.25723975,222.89,222.83,6.81680359]
[1734438234763,2.2439,222.86,222.83,6.81680359]
[1734438236963,2.2438,222.87,222.83,9.06090359]
[1734438237161,6.81680359,222.92,222.85,6.81680359]
[1734438237364,2.2,222.94,222.85,6.81680359]
[1734438237660,9.01680359,222.94,222.85,6.81680359]
[1734438237865,9.01680359,222.94,222.86,2.2]
[1734438238366,6.81680359,222.94,222.87,6.81680359]
[1734438238665,6.81680359,222.96,222.88,2.2436]
[1734438238865,6.81680359,222.96,222.87,6.81680359]
[1734438239468,6.81680359,222.98,222.89,6.81680359]
[1734438240262,6.81680359,222.98,222.91,6.81680359]
[1734438240766,6.81680359,222.98,222.91,9.01680359]
[1734438240962,2.2,223.02,222.91,9.01680359]
[1734438241169,6.81680359,223.0,222.93,6.81680359]
[1734438241671,2.2428,222.97,222.93,6.81680359]
[1734438242957,5.31896458,223.02,222.92,2.985]
[1734438242958,2.2431,222.94,222.92,2.985]
[1734438243164,6.81680359,222.96,222.89,2.2]
[1734438243666,2.2431,222.94,222.89,2.2]
[1734438244163,6.81680359,222.96,222.89,2.2]
[1734438244861,2.2431,222.94,222.89,4.4435]
[1734438245071,6.81680359,222.96,222.89,2.2]
[1734438245461,5.31896458,223.02,222.89,2.2]
[1734438245462,6.81680359,222.94,222.89,2.2]
[1734438245666,6.81680359,222.94,222.88,6.81680359]
[1734438245667,6.81680359,222.94,222.87,2.2]
[1734438246064,2.2433,222.92,222.87,4.4437]
[1734438246572,2.2429,222.95,222.9,9.06020359]
[1734438246769,2.2429,222.95,222.9,6.81680359]
[1734438246969,6.81680359,222.97,222.9,6.81680359]
[1734438247862,2.2429,222.96,222.9,6.81680359]
[1734438248062,6.81680359,222.97,222.9,6.81680359]
[1734438249467,2.243,222.95,222.91,2.2433]
[1734438249864,6.81680359,222.97,222.87,2.2]
[1734438250070,6.81680359,222.95,222.88,6.81680359]
[1734438250572,6.81680359,222.95,222.88,9.01680359]
[1734438251071,2.2433,222.92,222.88,9.01680359]
[1734438252272,2.2433,222.92,222.88,11.26040359]
[1734438252873,6.81680359,222.95,222.88,11.26040359]
[1734438253078,2.2434,222.91,222.88,11.26040359]
[1734438253270,2.2434,222.91,222.88,9.06040359]
[1734438255575,6.81680359,222.95,222.88,6.81680359]
[1734438255771,7.51896458,223.02,222.92,6.81680359]
[1734438255971,6.81680359,223.0,222.92,9.01680359]
[1734438256570,2.2428,222.97,222.94,2.2429]
[1734438257170,2.2428,222.96,222.93,2.2431]
[1734438257368,6.81680359,222.98,222.92,2.2]
[1734438257570,2.2431,222.93,222.92,2.2]
[1734438258172,6.81680359,222.96,222.92,2.2]
[1734438258480,6.81680359,222.96,222.89,6.81680359]
[1734438258481,2.2431,222.94,222.91,2.2433]
[1734438260887,5.31896458,223.02,222.91,6.81680359]
[1734438261181,6.81680359,222.99,222.91,6.81680359]
[1734438261372,2.2429,222.96,222.93,2.2431]
[1734438262375,2.2426,222.99,222.95,2.2429]
[1734438265085,2.2427,222.98,222.95,2.2429]
[1734438265281,6.81680359,222.99,222.92,6.81680359]
[1734438266085,2.2428,222.97,222.94,2.243]
[1734438267783,6.81680359,222.95,222.88,2.2436]
[1734438267982,6.81680359,222.95,222.87,6.81680359]
[1734438268386,2.2433,222.91,222.88,2.2436]
[1734438268882,10.17540567,222.97,222.89,6.81680359]
[1734438269085,2.2433,222.92,222.89,6.81680359]
[1734438269480,6.81680359,222.96,222.89,6.81680359]
[1734438269682,2.2433,222.91,222.89,6.81680359]
[1734438270482,2.2435,222.9,222.87,9.06050359]
[1734438271087,2.2439,222.86,222.84,2.2]
[1734438271384,6.81680359,222.9,222.83,2.966]
[1734438271782,2.244,222.85,222.83,2.966]
[1734438272890,6.81680359,222.88,222.83,2.966]
[1734438273083,6.81680359,222.88,222.82,6.81680359]
[1734438273284,2.244,222.84,222.8,11.26120359]
[1734438273480,6.81680359,222.88,222.8,2.2]
[1734438273779,6.81680359,222.84,222.77,3.1216]
[1734438274088,2.2445,222.8,222.77,3.1216]
[1734438275389,2.2445,222.8,222.77,9.93840359]
[1734438276785,2.2445,222.8,222.77,3.1216]
[1734438277292,6.81680359,222.82,222.77,3.1216]
[1734438277588,6.81680359,222.82,222.75,2.2]
[1734438277787,6.81680359,222.82,222.74,6.81680359]
[1734438278285,2.2447,222.78,222.74,6.81680359]
[1734438279079,2.2,222.83,222.76,6.81680359]
[1734438279381,2.2,222.83,222.72,2.2]
[1734438279382,2.2,222.83,222.78,6.81680359]
[1734438280589,2.2444,222.81,222.78,6.81680359]
[1734438281286,2.2443,222.82,222.78,6.81680359]
[1734438282087,6.054,222.96,222.8,6.81680359]
[1734438282301,6.054,222.96,222.84,6.81680359]
[1734438282302,2.2,222.95,222.84,6.81680359]
[1734438282482,5.30661638,222.91,222.84,6.81680359]
[1734438282681,2.2436,222.89,222.84,6.81680359]
[1734438282882,6.81680359,222.92,222.86,6.81680359]
[1734438283087,6.81680359,222.94,222.86,6.81680359]
[1734438283287,2.2434,222.91,222.86,9.06060359]
[1734438283490,6.81680359,222.92,222.86,6.81680359]
[1734438283689,6.81680359,222.88,222.79,2.9032]
[1734438283885,6.81680359,222.88,222.8,6.81680359]
[1734438283886,2.2441,222.84,222.8,6.81680359]
[1734438284082,6.68151435,223.01,222.79,2.9032]
[1734438284083,6.81680359,222.86,222.79,2.9032]
[1734438284282,5.47856261,222.92,222.79,2.9032]
[1734438284283,6.81680359,222.84,222.79,2.9032]
[1734438284889,9.06090359,222.84,222.79,5.1477]
[1734438285084,5.47856261,222.92,222.8,6.81680359]
[1734438285291,6.81680359,222.89,222.82,6.81680359]
[1734438285493,6.81680359,222.87,222.79,2.9032]
[1734438285689,6.81680359,222.87,222.79,9.72000359]
[1734438286193,6.81680359,222.87,222.79,11.96450359]
[1734438286890,2.2442,222.83,222.79,11.96450359]
[1734438287485,2.2443,222.82,222.79,9.72000359]
[1734438287884,2.2443,222.82,222.79,2.9032]
[1734438288485,2.2,222.88,222.78,2.2]
[1734438288685,2.2445,222.8,222.78,2.2]
[1734438289091,2.2445,222.8,222.76,9.06160359]
[1734438289693,2.2445,222.8,222.77,2.2447]
[1734438291491,2.2446,222.79,222.76,6.81680359]
[1734438291889,6.81680359,222.81,222.74,9.01680359]
[1734438292291,2.2448,222.77,222.74,9.01680359]
[1734438292492,6.81680359,222.81,222.74,9.01680359]
[1734438292797,2.2448,222.77,222.74,2.2]
[1734438293000,2.2448,222.77,222.73,9.06190359]
[1734438294298,2.2443,222.82,222.78,2.2446]
[1734438296400,9.06090359,222.84,222.79,2.2445]
[1734438296996,1.5024,222.91,222.8,2.2444]
[1734438297203,1.5024,222.91,222.69,3.06]
[1734438297204,6.81680359,222.87,222.81,6.81680359]
[1734438297502,1.5024,222.91,222.81,6.81680359]
[1734438297503,2.2,222.9,222.81,6.81680359]
[1734438297799,6.81680359,222.87,222.81,6.81680359]
[1734438298407,2.2439,222.86,222.81,9.06110359]
[1734438299003,2.2439,222.86,222.82,2.2442]
[1734438299304,9.06060359,222.87,222.82,2.2442]
[1734438299810,9.06060359,222.87,222.83,2.2441]
[1734438300413,2.2438,222.86,222.81,2.2443]
[1734438300608,6.81680359,222.85,222.81,2.2443]
[1734438301512,9.06080359,222.85,222.81,2.2443]
[1734438302017,2.244,222.85,222.81,2.2443]
[1734438305513,2.2441,222.84,222.81,2.2443]
[1734438306613,2.2441,222.84,222.78,11.97090359]
[1734438306816,248.354476,222.97,222.82,6.81680359]
[1734438307012,10.15256483,222.96,222.82,6.81680359]
[1734438307213,6.81680359,222.92,222.85,2.2439]
[1734438307420,6.81680359,222.88,222.83,2.2]
[1734438307615,6.81680359,222.86,222.79,1.5341]
[1734438307814,2.2446,222.79,222.78,2.9541]
[1734438308019,6.81680359,222.8,222.72,52.12260436]
[1734438308616,6.81680359,222.8,222.73,4.72958816]
[1734438308814,6.81680359,222.8,222.72,54.32260436]
[1734438309420,2.2447,222.78,222.73,6.97829323]
[1734438309619,2.2447,222.78,222.73,2.2451]
[1734438309920,6.81680359,222.8,222.74,6.81680359]
[1734438310316,2.2446,222.79,222.74,9.06180359]
[1734438311217,2.2446,222.79,222.74,2.245]
[1734438311421,6.81680359,222.78,222.71,2.2]
[1734438312520,2.245,222.75,222.69,2.2]
[1734438313217,2.245,222.75,222.7,4.74587344]
[1734438313522,2.245,222.75,222.68,9.01680359]
[1734438313722,2.245,222.75,222.69,4.74532853]
[1734438313922,2.245,222.75,222.7,4.74532853]
[1734438314126,2.245,222.75,222.68,9.01680359]
[1734438314324,2.245,222.75,222.7,6.81680359]
[1734438314522,2.245,222.75,222.71,2.2454]
[1734438315322,2.245,222.75,222.72,2.2453]
[1734438315926,6.81680359,222.76,222.72,2.2453]
[1734438316423,6.81680359,222.76,222.7,6.81680359]
[1734438316729,6.81680359,222.76,222.71,6.99364165]
[1734438317021,16.90238552,222.86,222.72,6.81680359]
[1734438317326,6.81680359,222.8,222.73,4.74845647]
[1734438317522,6.81680359,222.8,222.72,6.81680359]
[1734438317719,6.81680359,222.8,222.68,2.2]
[1734438317919,6.81680359,222.8,222.71,6.81680359]